fUSD/lending_fUSD_20250216
["ID","MTS","AMOUNT","RATE_DAILY","PERIOD"]
[353222695,1739674244068,-500.0,0.00010958,2]
[353222696,1739674244077,-500.0,0.00010958,2]
[353222697,1739674244086,-500.0,0.00010958,2]
[353222698,1739674244095,-535.36686683,0.00010958,2]
[353222699,1739674244107,-500.0,0.00010958,2]
[353222700,1739674244116,-528.18,0.00010958,2]
[353222701,1739674244126,-500.0,0.00010958,2]
[353222702,1739674244137,-235.61967121,0.00010958,2]
[353222703,1739674244148,-505.50367037,0.00010958,2]
[353222704,1739674244158,-500.0,0.00010958,2]
[353222705,1739674244167,-505.19984205,0.00010958,2]
[353222706,1739674244175,-619.15,0.00010958,2]
[353222707,1739674244184,-513.38019011,0.00010958,2]
[353222708,1739674244194,-522.08,0.00010958,2]
[353222709,1739674244203,-528.32499398,0.00010958,2]
[353222710,1739674244212,-500.0,0.00010958,2]
[353222711,1739674244222,-500.0,0.00010958,2]
[353222712,1739674244232,-500.0,0.00010958,2]
[353222713,1739674244241,-500.0,0.00010958,2]
[353222714,1739674244251,-1330.62,0.00010958,2]
[353222715,1739674244260,-500.0,0.00010958,2]
[353222716,1739674244269,-500.0,0.00010958,2]
[353222717,1739674244278,-500.0,0.00010958,2]
[353222718,1739674244288,-500.0,0.00010958,2]
[353222719,1739674244297,-500.0,0.00010958,2]
[353222720,1739674244308,-500.0,0.00010958,2]
[353222721,1739674244317,-500.0,0.00010958,2]
[353222722,1739674244327,-500.0,0.00010958,2]
[353222723,1739674244336,-1469.32,0.00010958,2]
[353222724,1739674244345,-500.0,0.00010958,2]
[353222725,1739674244355,-542.28,0.00010958,2]
[353222726,1739674244365,-500.0,0.00010958,2]
[353222727,1739674244375,-500.0,0.00010958,2]
[353222728,1739674244385,-505.75455251,0.00010958,2]
[353222729,1739674244394,-556.93,0.00010958,2]
[353222730,1739674244404,-546.74,0.00010958,2]
[353222731,1739674244414,-500.0,0.00010958,2]
[353222732,1739674244423,-500.0,0.00010958,2]
[353222733,1739674244433,-500.0,0.00010958,2]
[353222734,1739674244443,-500.0,0.00010958,2]
[353222735,1739674244452,-500.0,0.00010958,2]
[353222736,1739674244462,-500.0,0.00010958,2]
[353222737,1739674244472,-641.35,0.00010958,2]
[353222738,1739674244481,-500.0,0.00010958,2]
[353222739,1739674244491,-508.80697474,0.00010958,2]
[353222740,1739674244500,-500.0,0.00010958,2]
[353222741,1739674244510,-500.0,0.00010958,2]
[353222742,1739674244519,-500.0,0.00010958,2]
[353222743,1739674244528,-500.0,0.00010958,2]
[353222744,1739674244538,-500.0,0.00010958,2]
[353222745,1739674244548,-500.0,0.00010958,2]
[353222746,1739674244558,-500.0,0.00010958,2]
[353222747,1739674244568,-589.87,0.00010958,2]
[353222748,1739674244577,-601.24,0.00010958,2]
[353222749,1739674244586,-500.0,0.00010958,2]
[353222750,1739674244596,-500.0,0.00010958,2]
[353222751,1739674244605,-500.0,0.00010958,2]
[353222752,1739674244615,-500.0,0.00010958,2]
[353222753,1739674244624,-500.0,0.00010958,2]
[353222754,1739674244634,-500.0,0.00010958,2]
[353222755,1739674244644,-500.0,0.00010958,2]
[353222756,1739674244654,-500.0,0.00010958,2]
[353222757,1739674244664,-500.0,0.00010958,2]
[353222758,1739674244679,-500.0,0.00010958,2]
[353222759,1739674244688,-500.0,0.00010958,2]
[353222760,1739674244699,-513.54596633,0.00010958,2]
[353222761,1739674244708,-500.0,0.00010958,2]
[353222762,1739674244718,-500.0,0.00010958,2]
[353222763,1739674244727,-500.0,0.00010958,2]
[353222764,1739674244737,-747.25,0.00010958,2]
[353222765,1739674244746,-646.74,0.00010958,2]
[353222766,1739674244756,-500.0,0.00010958,2]
[353222767,1739674244765,-500.0,0.00010958,2]
[353222768,1739674244776,-500.0,0.00010958,2]
[353222769,1739674244785,-500.0,0.00010958,2]
[353222770,1739674244795,-500.0,0.00010958,2]
[353222771,1739674244805,-337.45748539,0.00010958,2]
[353222772,1739674244815,-513.60940361,0.00010958,2]
[353222773,1739674244825,-500.0,0.00010958,2]
[353222774,1739674244835,-500.0,0.00010958,2]
[353222775,1739674244845,-507.49030891,0.00010958,2]
[353222776,1739674244854,-523.002741,0.00010958,2]
[353222777,1739674244864,-526.87,0.00010958,2]
[353222778,1739674244874,-500.0,0.00010958,2]
[353222779,1739674244886,-500.0,0.00010958,2]
[353222780,1739674244898,-500.0,0.00010958,2]
[353222781,1739674244908,-500.0,0.00010958,2]
[353222782,1739674244919,-151.0,0.00010958,2]
[353222783,1739674244929,-500.0,0.00010958,2]
[353222784,1739674244939,-520.31894428,0.00010958,2]
[353222785,1739674244949,-500.0,0.00010958,2]
[353222786,1739674244959,-500.0,0.00010958,2]
[353222787,1739674244969,-500.0,0.00010958,2]
[353222788,1739674244979,-500.0,0.00010958,2]
[353222789,1739674244988,-690.39,0.00010958,2]
[353222790,1739674244998,-500.0,0.00010958,2]
[353222791,1739674245007,-500.0,0.00010958,2]
[353222792,1739674245017,-500.0,0.00010958,2]
[353222793,1739674245027,-500.0,0.00010958,2]
[353222794,1739674245038,-622.00830148,0.00010958,2]
[353222795,1739674245048,-500.0,0.00010958,2]
[353222796,1739674245062,-500.0,0.00010958,2]
[353222797,1739674245071,-500.0,0.00010958,2]
[353222798,1739674245081,-500.0,0.00010958,2]
[353222799,1739674245090,-500.0,0.00010958,2]
[353222800,1739674245101,-506.6913897,0.00010958,2]
[353222801,1739674245111,-628.82,0.00010958,2]
[353222802,1739674245120,-949.9,0.00010958,2]
[353222803,1739674245131,-342.32237146,0.00010958,2]
[353222804,1739674245141,-516.69434992,0.00010958,2]
[353222805,1739674245150,-576.08542827,0.00010958,2]
[353222806,1739674245160,-500.0,0.00010958,2]
[353222807,1739674245169,-500.0,0.00010958,2]
[353222808,1739674245179,-500.0,0.00010958,2]
[353222809,1739674245189,-521.72749982,0.00010958,2]
[353222810,1739674245199,-500.0,0.00010958,2]
[353222811,1739674245208,-832.9,0.00010958,2]
[353222812,1739674245218,-510.26699632,0.00010958,2]
[353222813,1739674245228,-1243.2,0.00010958,2]
[353222814,1739674245238,-500.0,0.00010958,2]
[353222815,1739674245248,-504.10462956,0.00010958,2]
[353222816,1739674245258,-4354.37,0.00010958,2]
[353222817,1739674245268,-514.13834571,0.00010958,2]
[353222818,1739674245278,-920.7,0.00010958,2]
[353222819,1739674245287,-506.25024666,0.00010958,2]
[353222820,1739674245296,-500.0,0.00010958,2]
[353222821,1739674245305,-500.0,0.00010958,2]
[353222822,1739674245315,-504.84824523,0.00010958,2]
[353222823,1739674245324,-548.49018622,0.00010958,2]
[353222824,1739674245334,-502.58,0.00010958,2]
[353222825,1739674245344,-1051.11,0.00010958,2]
[353222826,1739674245353,-500.0,0.00010958,2]
[353222827,1739674245363,-1156.29,0.00010958,2]
[353222828,1739674245373,-500.0,0.00010958,2]
[353222829,1739674245382,-500.0,0.00010958,2]
[353222830,1739674245391,-500.0,0.00010958,2]
[353222831,1739674245401,-1495.55,0.00010958,2]
[353222832,1739674245410,-3372.89,0.00010958,2]
[353222833,1739674245419,-500.0,0.00010958,2]
[353222834,1739674245429,-500.0,0.00010958,2]
[353222835,1739674245438,-635.95,0.00010958,2]
[353222836,1739674245448,-526.24573495,0.00010958,2]
[353222837,1739674245458,-500.0,0.00010958,2]
[353222838,1739674245468,-500.0,0.00010958,2]
[353222839,1739674245477,-513.07685549,0.00010958,2]
[353222840,1739674245487,-500.0,0.00010958,2]
[353222841,1739674245496,-328.27670124,0.00010958,2]
[353222842,1739674245506,-517.1096661,0.00010958,2]
[353222843,1739674245516,-500.0,0.00010958,2]
[353222844,1739674245526,-500.0,0.00010958,2]
[353222845,1739674245535,-500.0,0.00010958,2]
[353222846,1739674245546,-500.0,0.00010958,2]
[353222847,1739674245555,-500.0,0.00010958,2]
[353222848,1739674245565,-579.0,0.00010958,2]
[353222849,1739674245575,-507.5744199,0.00010958,2]
[353222850,1739674245584,-500.0,0.00010958,2]
[353222851,1739674245593,-500.0,0.00010958,2]
[353222852,1739674245602,-1428.67,0.00010958,2]
[353222853,1739674245612,-516.34178052,0.00010958,2]
[353222854,1739674245622,-536.25,0.00010958,2]
[353222855,1739674245631,-1510.1,0.00010958,2]
[353222856,1739674245640,-500.0,0.00010958,2]
[353222857,1739674245650,-509.42791732,0.00010958,2]
[353222858,1739674245660,-500.0,0.00010958,2]
[353222859,1739674245669,-548.62075866,0.00010958,2]
[353222860,1739674245680,-1169.47,0.00010958,2]
[353222861,1739674245690,-506.64501976,0.00010958,2]
[353222862,1739674245699,-500.0,0.00010958,2]
[353222863,1739674245710,-500.0,0.00010958,2]
[353222864,1739674245719,-500.0,0.00010958,2]
[353222865,1739674245728,-1500.46,0.00010958,2]
[353222866,1739674245738,-1812.54,0.00010958,2]
[353222867,1739674245747,-3720.29,0.00010958,2]
[353222868,1739674245757,-505.46609903,0.00010958,2]
[353222869,1739674245767,-606.9,0.00010958,2]
[353222870,1739674245777,-832.85,0.00010958,2]
[353222871,1739674245789,-500.0,0.00010958,2]
[353222872,1739674245798,-500.0,0.00010958,2]
[353222873,1739674245808,-500.0,0.00010958,2]
[353222874,1739674245818,-500.0,0.00010958,2]
[353222875,1739674245827,-504.53957397,0.00010958,2]
[353222876,1739674245836,-500.0,0.00010958,2]
[353222877,1739674245846,-649.9,0.00010958,2]
[353222878,1739674245855,-998.95,0.00010958,2]
[353222879,1739674245865,-500.0,0.00010958,2]
[353222880,1739674245874,-500.0,0.00010958,2]
[353222881,1739674245883,-961.0,0.00010958,2]
[353222882,1739674245893,-500.0,0.00010958,2]
[353222883,1739674245902,-644.98,0.00010958,2]
[353222884,1739674245911,-1387.43,0.00010958,2]
[353222885,1739674245920,-509.57223347,0.00010958,2]
[353222886,1739674245930,-510.84850788,0.00010958,2]
[353222887,1739674245939,-1005.24,0.00010958,2]
[353222888,1739674245948,-659.59,0.00010958,2]
[353222890,1739674245957,-500.0,0.00010958,2]
[353222891,1739674245967,-500.0,0.00010958,2]
[353222893,1739674245980,-1243.93,0.00010958,2]
[353222895,1739674245989,-1347.16,0.00010958,2]
[353222897,1739674245998,-515.11179673,0.00010958,2]
[353222899,1739674246009,-500.0,0.00010958,2]
[353222900,1739674246019,-215.43762186,0.00010958,2]
[353222901,1739674246028,-508.28815622,0.00010958,2]
[353222902,1739674246037,-500.0,0.00010958,2]
[353222903,1739674246047,-506.85126442,0.00010958,2]
[353222904,1739674246060,-500.0,0.00010958,2]
[353222906,1739674246069,-2190.37,0.00010958,2]
[353222907,1739674246078,-1404.31,0.00010958,2]
[353222908,1739674246088,-742.62,0.00010958,2]
[353222909,1739674246099,-500.0,0.00010958,2]
[353222910,1739674246109,-500.0,0.00010958,2]
[353222911,1739674246257,-519.56406924,0.00010958,2]
[353222912,1739674246267,-518.90912078,0.00010958,2]
[353222913,1739674246277,-710.56,0.00010958,2]
[353222914,1739674246286,-1128.95,0.00010958,2]
[353222915,1739674246295,-507.53282069,0.00010958,2]
[353222916,1739674246304,-675.19,0.00010958,2]
[353222917,1739674246314,-500.0,0.00010958,2]
[353222918,1739674246323,-519.83144763,0.00010958,2]
[353222919,1739674246332,-900.63,0.00010958,2]
[353222920,1739674246341,-500.0,0.00010958,2]
[353222921,1739674246349,-500.0,0.00010958,2]
[353222922,1739674246358,-500.0,0.00010958,2]
[353222923,1739674246367,-3361.18,0.00010958,2]
[353222924,1739674246376,-500.0,0.00010958,2]
[353222925,1739674246385,-1805.08,0.00010958,2]
[353222926,1739674246394,-500.0,0.00010958,2]
[353222927,1739674246403,-517.8426866,0.00010958,2]
[353222928,1739674246412,-961.48,0.00010958,2]
[353222929,1739674246421,-937.14,0.00010958,2]
[353222930,1739674246431,-517.14864338,0.00010958,2]
[353222931,1739674246440,-962.29,0.00010958,2]
[353222932,1739674246450,-460.60702124,0.00010958,2]
[353222933,1739674246460,-650.93,0.00010958,2]
[353222934,1739674246470,-517.09979196,0.00010958,2]
[353222935,1739674246479,-1479.03,0.00010958,2]
[353222936,1739674246488,-500.0,0.00010958,2]
[353222937,1739674246497,-1692.69,0.00010958,2]
[353222938,1739674246507,-1324.27,0.00010958,2]
[353222939,1739674246516,-2245.37,0.00010958,2]
[353222940,1739674246525,-500.0,0.00010958,2]
[353222941,1739674246535,-500.0,0.00010958,2]
[353222942,1739674246544,-500.0,0.00010958,2]
[353222943,1739674246553,-889.86,0.00010958,2]
[353222944,1739674246562,-1263.08,0.00010958,2]
[353222945,1739674246571,-504.86909926,0.00010958,2]
[353222946,1739674246581,-500.0,0.00010958,2]
[353222947,1739674246590,-780.67,0.00010958,2]
[353222948,1739674246599,-277.34540434,0.00010958,2]
[353222949,1739674246608,-500.0,0.00010958,2]
[353222950,1739674246618,-500.0,0.00010958,2]
[353222951,1739674246627,-1312.59,0.00010958,2]
[353222952,1739674246637,-769.94,0.00010958,2]
[353222953,1739674246646,-576.90334537,0.00010958,2]
[353222954,1739674246655,-514.45924997,0.00010958,2]
[353222955,1739674246664,-511.24966752,0.00010958,2]
[353222956,1739674246674,-1559.24,0.00010958,2]
[353222957,1739674246683,-500.0,0.00010958,2]
[353222958,1739674246693,-1315.84,0.00010958,2]
[353222959,1739674246702,-500.0,0.00010958,2]
[353222960,1739674246711,-500.0,0.00010958,2]
[353222961,1739674246721,-500.0,0.00010958,2]
[353222962,1739674246731,-500.0,0.00010958,2]
[353222963,1739674246740,-757.56,0.00010958,2]
[353222964,1739674246749,-500.0,0.00010958,2]
[353222965,1739674246758,-2600.62,0.00010958,2]
[353222966,1739674246767,-507.64973869,0.00010958,2]
[353222967,1739674246776,-500.0,0.00010958,2]
[353222968,1739674246786,-509.05787508,0.00010958,2]
[353222969,1739674246795,-652.08,0.00010958,2]
[353222970,1739674246806,-500.0,0.00010958,2]
[353222971,1739674246816,-2801.1,0.00010958,2]
[353222972,1739674246826,-500.0,0.00010958,2]
[353222973,1739674246836,-1131.01,0.00010958,2]
[353222974,1739674246846,-583.29,0.00010958,2]
[353222975,1739674246855,-1184.85,0.00010958,2]
[353222976,1739674246865,-500.0,0.00010958,2]
[353222977,1739674246874,-707.67,0.00010958,2]
[353222978,1739674246884,-500.0,0.00010958,2]
[353222979,1739674246893,-2932.25,0.00010958,2]
[353222980,1739674246903,-1352.47,0.00010958,2]
[353222981,1739674246913,-1133.89,0.00010958,2]
[353222982,1739674246922,-595.64,0.00010958,2]
[353222983,1739674246931,-763.0,0.00010958,2]
[353222984,1739674246940,-500.0,0.00010958,2]
[353222985,1739674246950,-1150.72,0.00010958,2]
[353222986,1739674246959,-500.0,0.00010958,2]
[353222987,1739674246968,-500.0,0.00010958,2]
[353222988,1739674246977,-898.12,0.00010958,2]
[353222989,1739674246987,-1951.03,0.00010958,2]
[353222990,1739674246996,-1126.48,0.00010958,2]
[353222991,1739674247006,-500.0,0.00010958,2]
[353222992,1739674247015,-1679.27,0.00010958,2]
[353222993,1739674247024,-500.0,0.00010958,2]
[353222994,1739674247034,-1365.67,0.00010958,2]
[353222995,1739674247043,-514.01500121,0.00010958,2]
[353222996,1739674247057,-500.0,0.00010958,2]
[353222997,1739674247067,-1341.48,0.00010958,2]
[353222998,1739674247077,-1151.17,0.00010958,2]
[353222999,1739674247086,-747.74,0.00010958,2]
[353223000,1739674247096,-485.59142335,0.00010958,2]
[353223001,1739674247106,-511.66828006,0.00010958,2]
[353223002,1739674247116,-500.0,0.00010958,2]
[353223003,1739674247127,-520.10334799,0.00010958,2]
[353223004,1739674247137,-500.0,0.00010958,2]
[353223005,1739674247147,-511.04513979,0.00010958,2]
[353223006,1739674247157,-500.0,0.00010958,2]
[353223007,1739674247166,-835.94,0.00010958,2]
[353223008,1739674247176,-1248.87,0.00010958,2]
[353223009,1739674247186,-586.05,0.00010958,2]
[353223010,1739674247197,-500.0,0.00010958,2]
[353223011,1739674247207,-5675.85,0.00010958,2]
[353223012,1739674247218,-1090.81,0.00010958,2]
[353223013,1739674247227,-1171.06,0.00010958,2]
[353223014,1739674247236,-500.0,0.00010958,2]
[353223015,1739674247246,-2012.39,0.00010958,2]
[353223016,1739674247256,-518.97,0.00010958,2]
[353223017,1739674247267,-624.57,0.00010958,2]
[353223018,1739674247276,-636.86112159,0.00010958,2]
[353223019,1739674247285,-500.0,0.00010958,2]
[353223020,1739674247295,-283.75397252,0.00010958,2]
[353223021,1739674247304,-1512.02,0.00010958,2]
[353223022,1739674247314,-1311.73,0.00010958,2]
[353223023,1739674247323,-502.80871852,0.00010958,2]
[353223024,1739674247332,-1562.43,0.00010958,2]
[353223025,1739674247341,-512.26540688,0.00010958,2]
[353223026,1739674247350,-500.0,0.00010958,2]
[353223027,1739674247360,-897.42,0.00010958,2]
[353223028,1739674247370,-506.85159914,0.00010958,2]
[353223029,1739674247379,-500.0,0.00010958,2]
[353223030,1739674247389,-500.0,0.00010958,2]
[353223031,1739674247400,-1554.7,0.00010958,2]
[353223032,1739674247411,-840.16,0.00010958,2]
[353223033,1739674247422,-500.0,0.00010958,2]
[353223034,1739674247431,-503.44722195,0.00010958,2]
[353223035,1739674247442,-772.36,0.00010958,2]
[353223036,1739674247452,-500.0,0.00010958,2]
[353223037,1739674247462,-500.0,0.00010958,2]
[353223038,1739674247471,-500.0,0.00010958,2]
[353223039,1739674247480,-500.0,0.00010958,2]
[353223040,1739674247490,-4550.81,0.00010958,2]
[353223041,1739674247503,-500.0,0.00010958,2]
[353223042,1739674247514,-519.87056782,0.00010958,2]
[353223043,1739674247524,-891.54,0.00010958,2]
[353223044,1739674247534,-500.0,0.00010958,2]
[353223045,1739674247543,-3509.56,0.00010958,2]
[353223046,1739674247554,-1388.42,0.00010958,2]
[353223047,1739674247563,-644.83,0.00010958,2]
[353223048,1739674247574,-246.90470592,0.00010958,2]
[353223049,1739674247583,-500.0,0.00010958,2]
[353223050,1739674247593,-500.0,0.00010958,2]
[353223051,1739674247603,-605.42,0.00010958,2]
[353223052,1739674247613,-2137.0,0.00010958,2]
[353223053,1739674247622,-500.0,0.00010958,2]
[353223054,1739674247632,-500.0,0.00010958,2]
[353223055,1739674247641,-500.0,0.00010958,2]
[353223056,1739674247651,-500.0,0.00010958,2]
[353223057,1739674247661,-1751.8,0.00010958,2]
[353223058,1739674247671,-500.0,0.00010958,2]
[353223059,1739674247680,-1218.26,0.00010958,2]
[353223060,1739674247689,-577.75,0.00010958,2]
[353223061,1739674247699,-952.5,0.00010958,2]
[353223062,1739674247709,-500.0,0.00010958,2]
[353223063,1739674247718,-500.0,0.00010958,2]
[353223064,1739674247728,-1426.68,0.00010958,2]
[353223065,1739674247742,-1195.23,0.00010958,2]
[353223066,1739674247752,-1758.5,0.00010958,2]
[353223067,1739674247762,-500.0,0.00010958,2]
[353223068,1739674247772,-320.71124036,0.00010958,2]
[353223069,1739674247782,-986.78,0.00010958,2]
[353223070,1739674247792,-505.08553714,0.00010958,2]
[353223071,1739674247801,-500.0,0.00010958,2]
[353223072,1739674247811,-509.69,0.00010958,2]
[353223073,1739674247821,-705.44,0.00010958,2]
[353223074,1739674247831,-500.0,0.00010958,2]
[353223075,1739674247840,-500.0,0.00010958,2]
[353223076,1739674247850,-1538.32,0.00010958,2]
[353223077,1739674247859,-500.0,0.00010958,2]
[353223078,1739674247869,-500.0,0.00010958,2]
[353223079,1739674247878,-501.83977731,0.00010958,2]
[353223080,1739674247888,-738.14,0.00010958,2]
[353223081,1739674247897,-500.0,0.00010958,2]
[353223082,1739674247907,-726.12,0.00010958,2]
[353223083,1739674247916,-2187.4,0.00010958,2]
[353223084,1739674247926,-500.0,0.00010958,2]
[353223085,1739674247936,-500.0,0.00010958,2]
[353223086,1739674247945,-500.0,0.00010958,2]
[353223087,1739674247955,-500.0,0.00010958,2]
[353223088,1739674247965,-1286.62,0.00010958,2]
[353223089,1739674247974,-739.26,0.00010958,2]
[353223090,1739674247983,-500.0,0.00010958,2]
[353223091,1739674247992,-500.0,0.00010958,2]
[353223092,1739674248002,-591.67,0.00010958,2]
[353223093,1739674248011,-500.0,0.00010958,2]
[353223094,1739674248021,-500.0,0.00010958,2]
[353223095,1739674248030,-500.0,0.00010958,2]
[353223096,1739674248040,-769.87,0.00010958,2]
[353223097,1739674248049,-500.0,0.00010958,2]
[353223098,1739674248063,-500.0,0.00010958,2]
[353223099,1739674248072,-500.0,0.00010958,2]
[353223100,1739674248081,-500.0,0.00010958,2]
[353223101,1739674248090,-503.7193694,0.00010958,2]
[353223102,1739674248101,-206.19802704,0.00010958,2]
[353223103,1739674248111,-500.0,0.00010959,2]
[353223104,1739674248121,-2000.0,0.00010959,2]
[353223105,1739674248131,-200.0,0.00010959,2]
[353223106,1739674248142,-166.0,0.00010959,2]
[353223107,1739674248153,-150.0,0.00010959,2]
[353223108,1739674248162,-163.90988708,0.00010972,2]
[353223109,1739674248172,-432.14064522,0.00010973,2]
[353223110,1739674248182,-150.69410989,0.0001099,2]
[353223111,1739674248191,-500.0,0.00010996,2]
[353223112,1739674248201,-501.63666064,0.00010998,2]
[353223113,1739674248210,-500.28253656,0.00010998,2]
[353223114,1739674248220,-500.54624042,0.00010998,2]
[353223115,1739674248229,-500.6646757,0.00010998,2]
[353223116,1739674248239,-429.08389476,0.00010998,2]
[353223117,1739674248250,-501.02385903,0.00010998,2]
[353223118,1739674248260,-500.70597634,0.00010998,2]
[353223119,1739674248269,-500.35557101,0.00010998,2]
[353223120,1739674248279,-500.8189553,0.00010998,2]
[353223121,1739674248288,-500.94463804,0.00010998,2]
[353223122,1739674248298,-502.54425186,0.00010998,2]
[353223123,1739674248310,-501.38296475,0.00010998,2]
[353223124,1739674248319,-501.01201509,0.00010998,2]
[353223125,1739674248329,-502.57118306,0.00010998,2]
[353223126,1739674248339,-502.7019723,0.00010998,2]
[353223127,1739674248349,-592.7656998,0.00010998,2]
[353223128,1739674248359,-501.94683439,0.00010998,2]
[353223129,1739674248370,-500.92291528,0.00010998,2]
[353223130,1739674248380,-500.0,0.00010998,2]
[353223131,1739674248390,-502.52816339,0.00010998,2]
[353223132,1739674248400,-454.0781008,0.00010998,2]
[353223133,1739674248410,-500.68040794,0.00010998,2]
[353223134,1739674248419,-648.03,0.00010998,2]
[353223135,1739674248430,-888.77,0.00010998,2]
[353223136,1739674248440,-511.94,0.00010998,2]
[353223137,1739674248450,-537.26,0.00010998,2]
[353223138,1739674248460,-700.37,0.00010998,2]
[353223139,1739674248471,-500.0,0.00010998,2]
[353223140,1739674248481,-803.1,0.00010998,2]
[353223141,1739674248491,-517.12,0.00010998,2]
[353223142,1739674248501,-915.4,0.00010998,2]
[353223143,1739674248511,-534.78,0.00010998,2]
[353223144,1739674248521,-500.0,0.00010998,2]
[353223145,1739674248532,-500.0,0.00010998,2]
[353223146,1739674248542,-865.33,0.00010998,2]
[353223147,1739674248553,-512.3,0.00010998,2]
[353223148,1739674248563,-1001.76,0.00010998,2]
[353223149,1739674248574,-500.0,0.00010998,2]
[353223150,1739674248584,-918.95,0.00010998,2]
[353223151,1739674248594,-500.0,0.00010998,2]
[353223152,1739674248604,-542.55,0.00010998,2]
[353223153,1739674248615,-500.0,0.00010998,2]
[353223154,1739674248624,-541.94946671,0.00010998,2]
[353223155,1739674248635,-500.0,0.00010998,2]
[353223156,1739674248645,-500.0,0.00010998,2]
[353223157,1739674248657,-500.0,0.00010998,2]
[353223158,1739674248668,-151.0,0.00010998,2]
[353223159,1739674248678,-500.0,0.00010998,2]
[353223160,1739674248688,-506.35861409,0.00010998,2]
[353223161,1739674248697,-500.0,0.00010998,2]
[353223162,1739674248707,-500.0,0.00010998,2]
[353223163,1739674248717,-500.0,0.00010998,2]
[353223164,1739674248727,-150.0,0.00010999,2]
[353223165,1739674248737,-200.0,0.00010999,2]
[353223166,1739674248746,-50603.35558017,0.00010999,2]
[353223167,1739674248756,-62190.55760288,0.00010999,2]
[353223168,1739674248766,-686.5796779,0.00010999,2]
[353223169,1739674248777,-200.488996,0.00010999,2]
[353223170,1739674248787,-1687.7435135,0.00011,4]
[353223171,1739674248798,-516.0,0.00011,2]
[353223172,1739674248807,-712.0,0.00011,2]
[353223173,1739674248817,-640.0,0.00011,2]
[353223174,1739674248826,-827.0,0.00011,2]
[353223175,1739674248837,-7708.8843222,0.0001103,2]
[353223176,1739674248846,-199.7691131,0.00011032,2]
[353223177,1739674248856,-211.4507042,0.00011032,2]
[353223178,1739674248866,-223.1322952,0.00011032,2]
[353223179,1739674248877,-512.6186689,0.00011032,2]
[353223180,1739674248889,-542.594282,0.00011032,2]
[353223181,1739674248900,-572.5698951,0.00011032,2]
[353223182,1739674248911,-500.0,0.00011039,2]
[353223183,1739674248921,-500.0,0.00011039,2]
[353223184,1739674248931,-500.0,0.00011039,2]
[353223185,1739674248942,-507.87836644,0.00011039,2]
[353223186,1739674248952,-508.94817778,0.00011039,2]
[353223187,1739674249122,-500.0,0.00011039,2]
[353223188,1739674249132,-500.0,0.00011039,2]
[353223189,1739674249143,-500.0,0.00011039,2]
[353223190,1739674249153,-508.27157004,0.00011039,2]
[353223191,1739674249164,-505.59834318,0.00011039,2]
[353223192,1739674249174,-1415.61,0.00011039,2]
[353223193,1739674249184,-208.2152741,0.00011039,2]
[353223194,1739674249195,-3095.60908152,0.0001104,2]
[353223195,1739674249205,-4251106.93134929,0.0001104,2]
[353223196,1739674249584,-69777.30369847,0.0001104,2]
[353223197,1739674249603,-737.50533136,0.0001104,2]
[353223198,1739674249632,-576.16348444,0.0001104,2]
[353223199,1739674249643,-61616.0,0.0001104,2]
[353223200,1739674249734,510.16,8.402e-05,2]